fUST/lending_fUST_20250816
["ID","MTS","AMOUNT","RATE_DAILY","PERIOD"]
[379454417,1755286232692,-94.40813559,0.00017271,2]
[379454462,1755286238654,-405.59186441,0.00017271,2]
[379454464,1755286238664,-500.0,0.00017271,2]
[379454466,1755286238674,-500.0,0.00017271,2]
[379454468,1755286238683,-500.0,0.00017271,2]
[379454470,1755286238693,-52.53031495,0.00017271,2]
[379454472,1755286238705,-447.46968505,0.00017271,2]
[379454474,1755286238719,-500.0,0.00017271,2]
[379454476,1755286238728,-500.0,0.00017271,2]
[379454477,1755286238738,-500.0,0.00017271,2]
[379454478,1755286238747,-500.0,0.00017271,2]
[379454479,1755286238757,-500.0,0.00017271,2]
[379454481,1755286238766,-500.0,0.00017271,2]
[379454483,1755286238776,-500.0,0.00017271,2]
[379454485,1755286238787,-500.0,0.00017271,2]
[379454487,1755286238796,-500.0,0.00017271,2]
[379454489,1755286238806,-500.0,0.00017271,2]
[379454491,1755286238815,-500.0,0.00017271,2]
[379454493,1755286238825,-500.0,0.00017271,2]
[379454495,1755286238834,-500.0,0.00017271,2]
[379454497,1755286238843,-500.0,0.00017271,2]
[379454499,1755286238853,-500.0,0.00017271,2]
[379454501,1755286238863,-500.0,0.00017271,2]
[379454503,1755286238873,-282.52740986,0.00017271,2]
[379454505,1755286238882,-500.0,0.00017271,2]
[379454507,1755286238892,-500.0,0.00017271,2]
[379454509,1755286238901,-324.235,0.00017271,2]
[379454511,1755286238911,-500.0,0.00017271,2]
[379454513,1755286238920,-500.0,0.00017271,2]
[379454515,1755286238930,-500.0,0.00017271,2]
[379454517,1755286238940,-1274.30338503,0.00017272,2]
[379454518,1755286238950,-24009.90652325,0.00017272,2]
[379454521,1755286238963,-366.65693215,0.00017272,2]
[379454525,1755286238994,-25623.4365446,0.00017272,2]
[379454527,1755286239003,-500.0,0.00017373,2]
[379454529,1755286239012,-422.95114,0.00017373,2]
[379454531,1755286239022,-200.0,0.00017504,2]
[379454532,1755286239031,-200.0,0.00017504,2]
[379454534,1755286239041,-200.0,0.00017504,2]
[379454536,1755286239050,-200.0,0.00017504,2]
[379454538,1755286239060,-200.0,0.00017504,2]
[379454539,1755286239069,-200.0,0.00017504,2]
[379454540,1755286239078,-500.0,0.00017504,2]
[379454541,1755286239087,-514.33477381,0.00017778,2]
[379454542,1755286239096,-1000.0,0.00017921,2]
[379454543,1755286239106,-500.0,0.00017928,2]
[379454544,1755286239114,-1804.2526524,0.00018073,2]
[379454545,1755286239123,-210.57,0.00018157,3]
[379454546,1755286239132,-631.71,0.00018157,3]
[379454547,1755286239140,-631.74,0.00018157,3]
[379454548,1755286239149,-631.71,0.00018157,3]
[379454549,1755286239158,-500.0,0.00018166,2]
[379454550,1755286239167,-500.0,0.00018166,2]
[379454551,1755286239175,-500.0,0.00018166,2]
[379454552,1755286239184,-500.0,0.00018166,2]
[379454553,1755286239193,-500.0,0.00018166,2]
[379454554,1755286239202,-441.56319492,0.00018166,2]
[379454555,1755286239211,-500.0,0.00018166,2]
[379454557,1755286239220,-500.0,0.00018166,2]
[379454559,1755286239229,-500.0,0.00018166,2]
[379454561,1755286239238,-500.0,0.00018166,2]
[379454563,1755286239248,-500.0,0.00018166,2]
[379454565,1755286239258,-500.0,0.00018166,2]
[379454567,1755286239267,-500.0,0.00018166,2]
[379454569,1755286239276,-500.0,0.00018166,2]
[379454571,1755286239286,-500.0,0.00018166,2]
[379454573,1755286239295,-500.0,0.00018166,2]
[379454575,1755286239303,-370000.0,0.00018167,2]
[379454577,1755286239312,-263.34307843,0.00018173,2]
[379454579,1755286239321,-500.0,0.00018173,2]
[379454581,1755286239332,-500.0,0.00018173,2]
[379454583,1755286239341,-500.0,0.00018173,2]
[379454585,1755286239351,-500.0,0.00018173,2]
[379454587,1755286239360,-500.0,0.00018173,2]
[379454589,1755286239369,-500.0,0.00018173,2]
[379454591,1755286239379,-500.0,0.00018173,2]
[379454593,1755286239388,-500.0,0.00018173,2]
[379454595,1755286239399,-442.75160345,0.00018173,2]
[379454597,1755286239408,-500.0,0.00018173,2]
[379454599,1755286239417,-1000.0,0.00018297,2]
[379454601,1755286239427,-1000.0,0.00018297,2]
[379454603,1755286239436,-1000.0,0.00018297,2]
[379454605,1755286239445,-1000.0,0.00018297,2]
[379454606,1755286239454,-1000.0,0.00018297,2]
[379454608,1755286239463,-171.63111371,0.00018416,2]
[379454610,1755286239472,-1190.71180506,0.00018468,2]
[379454612,1755286239482,-84328.36193269,0.000185,2]
[379454614,1755286239491,-322.57107324,0.00018721,2]
[379454616,1755286239500,-1000.0,0.00018721,2]
[379454618,1755286239509,-1000.0,0.00018721,2]
[379454620,1755286239520,-1000.0,0.00018721,2]
[379454622,1755286239530,-1000.0,0.00018721,2]
[379454624,1755286239539,-1000.0,0.00018721,2]
[379454626,1755286239548,-1274.30338503,0.0001873,2]
[379454628,1755286239557,-500.0,0.00018765,2]
[379454630,1755286239567,-500.0,0.00018765,2]
[379454631,1755286239577,-500.0,0.00018765,2]
[379454633,1755286239586,-500.0,0.00018765,2]
[379454635,1755286239595,-500.72635386,0.00018765,2]
[379454637,1755286239604,-160.0,0.00018793,2]
[379454639,1755286239614,-500.0,0.00018871,2]
[379454641,1755286239624,-2514.82852699,0.000189,2]
[379454643,1755286239634,-199.25331489,0.000189,2]
[379454645,1755286239643,-501.74183705,0.00018912,2]
[379454647,1755286239652,-250.260512,0.00019073,2]
[379454649,1755286239662,-250.260512,0.00019073,2]
[379454651,1755286239671,-341.0,0.00019078,2]
[379454653,1755286239681,-151.0,0.00019147,2]
[379454655,1755286239690,-250.260512,0.00019147,2]
[379454657,1755286239700,-250.260512,0.00019147,2]
[379454659,1755286239713,-151.0,0.00019147,2]
[379454661,1755286239724,-2056.95623393,0.00019205,5]
[379454663,1755286239733,-200.0,0.00019228,20]
[379454665,1755286239742,-200.0,0.00019228,20]
[379454666,1755286239751,-200.0,0.00019228,20]
[379454668,1755286239760,-200.0,0.00019228,20]
[379454670,1755286239769,-200.0,0.00019228,20]
[379454672,1755286239778,-200.0,0.00019228,20]
[379454674,1755286239788,-200.0,0.00019228,20]
[379454676,1755286239798,-280.0,0.00019228,20]
[379454678,1755286239807,-1000.0,0.00019268,2]
[379454680,1755286239816,-1248.52026501,0.00019268,2]
[379454682,1755286239826,-192.9908034,0.00019268,2]
[379454684,1755286239835,-954.37228408,0.00019268,2]
[379454686,1755286239844,-1500.0,0.00019268,2]
[379454688,1755286239853,-501.94900279,0.00019313,2]
[379454690,1755286239862,-500.0,0.00019313,2]
[379454692,1755286239871,-1000.0,0.00019313,2]
[379454694,1755286239880,-1000.0,0.00019313,2]
[379454696,1755286239889,-260.0,0.00019341,2]
[379454698,1755286239899,-500.0,0.00019394,2]
[379454700,1755286239908,-151.0,0.000194,2]
[379454701,1755286239918,-421.14,0.00019527,3]
[379454703,1755286239931,-151.0,0.00019628,2]
[379454705,1755286239941,-151.0,0.00019628,2]
[379454707,1755286239950,-151.0,0.00019628,2]
[379454709,1755286239959,-151.0,0.00019628,2]
[379454711,1755286239968,-151.0,0.00019628,2]
[379454713,1755286239978,-151.0,0.00019628,2]
[379454715,1755286239987,-151.0,0.00019628,2]
[379454717,1755286239996,-500.0,0.00019628,2]
[379454719,1755286240006,-151.0,0.00019628,2]
[379454721,1755286240015,-500.0,0.00019628,2]
[379454723,1755286240025,-500.0,0.00019628,2]
[379454725,1755286240034,-151.0,0.00019628,2]
[379454728,1755286240043,-151.0,0.00019628,2]
[379454731,1755286240055,-500.0,0.00019628,2]
[379454734,1755286240064,-151.0,0.00019628,2]
[379454737,1755286240073,-151.0,0.00019628,2]
[379454740,1755286240083,-500.0,0.00019628,2]
[379454742,1755286240093,-2183.31810187,0.00019628,2]
[379454744,1755286240102,-151.0,0.00019628,2]
[379454746,1755286240111,-230.72414637,0.00019628,2]
[379454748,1755286240120,-500.0,0.00019628,2]
[379454750,1755286240130,-151.0,0.00019628,2]
[379454752,1755286240139,-500.0,0.00019628,2]
[379454754,1755286240148,-500.0,0.00019628,2]
[379454756,1755286240158,-151.0,0.00019628,2]
[379454757,1755286240167,-156.04189223,0.00019628,2]
[379454772,1755286240299,-500.0,0.00019628,2]
[379454774,1755286240312,-500.0,0.00019628,2]
[379454776,1755286240321,-300.0,0.00019628,2]
[379454778,1755286240331,-500.0,0.00019628,2]
[379454780,1755286240341,-300.0,0.00019628,2]
[379454782,1755286240350,-500.0,0.00019628,2]
[379454784,1755286240360,-300.0,0.00019628,2]
[379454786,1755286240369,-500.0,0.00019628,2]
[379454788,1755286240379,-500.0,0.00019628,2]
[379454790,1755286240389,-500.0,0.00019628,2]
[379454792,1755286240398,-500.0,0.00019628,2]
[379454794,1755286240408,-151.0,0.00019628,2]
[379454796,1755286240418,-500.0,0.00019628,2]
[379454798,1755286240427,-151.0,0.00019628,2]
[379454800,1755286240437,-151.0,0.00019628,2]
[379454802,1755286240447,-151.0,0.00019628,2]
[379454804,1755286240458,-151.0,0.00019628,2]
[379454806,1755286240468,-17842.522448,0.00019628,2]
[379454808,1755286240477,-151.0,0.00019628,2]
[379454810,1755286240486,-151.0,0.00019628,2]
[379454812,1755286240496,-151.0,0.00019628,2]
[379454814,1755286240505,-151.0,0.00019628,2]
[379454816,1755286240515,-151.0,0.00019628,2]
[379454818,1755286240524,-151.0,0.00019628,2]
[379454820,1755286240533,-151.0,0.00019628,2]
[379454822,1755286240542,-151.0,0.00019628,2]
[379454824,1755286240551,-151.0,0.00019628,2]
[379454826,1755286240562,-151.0,0.00019628,2]
[379454828,1755286240571,-151.0,0.00019628,2]
[379454830,1755286240580,-151.0,0.00019628,2]
[379454832,1755286240590,-151.0,0.00019628,2]
[379454834,1755286240598,-151.0,0.00019628,2]
[379454836,1755286240607,-151.0,0.00019628,2]
[379454838,1755286240616,-250.260512,0.00019628,2]
[379454840,1755286240626,-250.260512,0.00019628,2]
[379454842,1755286240636,-500.0,0.00019668,2]
[379454844,1755286240645,-2264.10087164,0.00019683,2]
[379454846,1755286240654,-2183.31810186,0.00019738,2]
[379454848,1755286240664,-2000.0,0.00019816,2]
[379454850,1755286240673,-150.0,0.00019825,2]
[379454852,1755286240683,-500.0,0.00019825,2]
[379454854,1755286240692,-500.0,0.00019825,2]
[379454855,1755286240701,-1500.0,0.00019861,2]
[379454857,1755286240714,-344.19312399,0.00019861,2]
[379454859,1755286240731,-213.542944,0.00019863,2]
[379454861,1755286240741,-151.0,0.00019864,2]
[379454863,1755286240751,-500.0,0.00019864,2]
[379454865,1755286240760,-360.0,0.00019889,2]
[379454867,1755286240770,-250.260512,0.000199,2]
[379454869,1755286240779,-250.260512,0.000199,2]
[379454871,1755286240788,-13570.51078884,0.000199,2]
[379454873,1755286240799,-500.0,0.00019942,2]
[379454875,1755286240808,-500.0,0.00019973,2]
[379454877,1755286240818,-500.0,0.00019973,2]
[379454878,1755286240827,-500.0,0.00019973,2]
[379454880,1755286240836,-500.0,0.00019973,2]
[379454882,1755286240845,-501.07241622,0.00019973,2]
[379454884,1755286240855,-500.78890042,0.00019973,2]
[379454886,1755286240864,-500.0,0.00019973,2]
[379454888,1755286240873,-500.0,0.00019973,2]
[379454890,1755286240882,-500.0,0.00019973,2]
[379454892,1755286240892,-500.0,0.00019973,2]
[379454894,1755286240901,-500.0,0.00019973,2]
[379454896,1755286240911,-500.0,0.00019973,2]
[379454898,1755286240920,-6012.09217547,0.0002,2]
[379454900,1755286240929,-19615.26985351,0.0002,2]
[379454902,1755286240938,-68306.76676763,0.0002,2]
[379454904,1755286240948,-28049.81247613,0.0002,2]
[379454906,1755286240958,-4000.0,0.0002,4]
[379454908,1755286240967,-151.0,0.000201,3]
[379454910,1755286240976,-1274.30338503,0.00020189,2]
[379454912,1755286240986,-500.0,0.00020216,2]
[379454914,1755286240995,-179.78425889,0.00020273,2]
[379454916,1755286241004,-2292.68304261,0.00020364,2]
[379454918,1755286241013,-250.0,0.00020373,2]
[379454920,1755286241022,-1000.0,0.00020373,2]
[379454921,1755286241031,-501.46149829,0.00020373,2]
[379454923,1755286241041,-215.63758983,0.00020401,2]
[379454924,1755286241050,-528.28344625,0.00020407,2]
[379454925,1755286241059,-160.0,0.00020407,2]
[379454926,1755286241068,-160.0,0.00020407,2]
[379454927,1755286241079,-160.0,0.00020407,2]
[379454928,1755286241089,-160.0,0.00020407,2]
[379454929,1755286241098,-160.0,0.00020407,2]
[379454930,1755286241107,-216.77912109,0.00020407,2]
[379454931,1755286241116,-160.0,0.00020407,2]
[379454932,1755286241125,-232.08354597,0.00020407,2]
[379454933,1755286241134,-462.0440047,0.00020407,2]
[379454934,1755286241143,-417.15472785,0.00020407,2]
[379454935,1755286241152,-843.47195277,0.00020407,2]
[379454936,1755286241161,-160.0,0.00020407,2]
[379454937,1755286241170,-160.0,0.00020407,2]
[379454938,1755286241179,-2000.0,0.00020409,2]
[379454939,1755286241188,-13570.51078869,0.00020416,2]
[379454940,1755286241197,-460.0,0.00020437,2]
[379454941,1755286241207,-395.72754741,0.00020437,2]
[379454942,1755286241216,-250.260512,0.00020464,2]
[379454943,1755286241225,-250.260512,0.00020464,2]
[379454944,1755286241234,-500.0,0.0002049,2]
[379454945,1755286241243,-1000.0,0.00020521,2]
[379454946,1755286241252,-1000.88170187,0.00020521,2]
[379454947,1755286241261,-1000.0,0.00020521,2]
[379454948,1755286241270,-1000.0,0.00020521,2]
[379454949,1755286241278,-1094.04779608,0.00020521,2]
[379454950,1755286241288,-1000.0,0.00020521,2]
[379454951,1755286241297,-1000.0,0.00020521,2]
[379454952,1755286241307,-500.0,0.00020764,2]
[379454953,1755286241315,-151.0,0.000208,4]
[379454954,1755286241324,-1000.0,0.000209,2]
[379454955,1755286241335,-1000.0,0.000209,2]
[379454956,1755286241344,-500.0,0.0002091,2]
[379454957,1755286241353,-350.0,0.00020921,2]
[379454958,1755286241362,-1500.0,0.00020921,2]
[379454959,1755286241371,-13570.51078869,0.00020932,2]
[379454960,1755286241380,-1246.06507833,0.00020957,2]
[379454961,1755286241389,-500.0,0.00020973,2]
[379454962,1755286241399,-500.0,0.00020973,2]
[379454963,1755286241407,-500.0,0.00020973,2]
[379454964,1755286241416,-500.0,0.00020973,2]
[379454965,1755286241426,-560.0,0.00020985,2]
[379454966,1755286241435,-151.0,0.00020997,2]
[379454967,1755286241443,-18502.69577858,0.00020997,2]
[379454968,1755286241452,-250.260512,0.00020997,2]
[379454969,1755286241463,-250.260512,0.00020997,2]
[379454970,1755286241472,-611.02292778,0.00021,2]
[379454971,1755286241484,-323.25617999,0.00021,2]
[379454972,1755286241492,-500.0,0.00021038,2]
[379454973,1755286241502,-1500.0,0.00021068,2]
[379454974,1755286241511,-1104.28536077,0.00021068,2]
[379454975,1755286241519,-1500.0,0.00021068,2]
[379454976,1755286241528,-1500.0,0.00021068,2]
[379454977,1755286241537,-1500.0,0.00021068,2]
[379454978,1755286241546,-200.0,0.00021121,20]
[379454979,1755286241556,-200.0,0.00021121,20]
[379454980,1755286241565,-200.0,0.00021121,20]
[379454981,1755286241574,-200.0,0.00021121,20]
[379454982,1755286241584,-200.0,0.00021121,20]
[379454983,1755286241593,-200.0,0.00021121,20]
[379454984,1755286241602,-200.0,0.00021121,20]
[379454985,1755286241611,-200.0,0.00021121,20]
[379454986,1755286241620,-200.0,0.00021121,20]
[379454987,1755286241629,-200.0,0.00021121,20]
[379454988,1755286241639,-350.0,0.00021121,20]
[379454989,1755286241648,-500.0,0.00021312,2]
[379454990,1755286241657,-326.04,0.0002144,2]
[379454991,1755286241666,-13570.51078869,0.00021448,2]
[379454992,1755286241675,-1804.25265238,0.00021452,2]
[379454993,1755286241684,-450.0,0.00021469,2]
[379454994,1755286241693,-2000.0,0.00021469,2]
[379454995,1755286241704,-151.0,0.000215,3]
[379454996,1755286241716,-1000.0,0.00021521,2]
[379454997,1755286241725,-1000.0,0.00021521,2]
[379454998,1755286241734,-1000.0,0.00021521,2]
[379454999,1755286241743,-415.14785593,0.00021521,2]
[379455000,1755286241752,-660.0,0.00021533,2]
[379455001,1755286241762,-500.0,0.00021586,2]
[379455002,1755286241771,-2000.0,0.00021616,2]
[379455003,1755286241780,-2000.0,0.00021616,2]
[379455004,1755286241790,-1218.2584306,0.00021616,2]
[379455005,1755286241801,-2000.0,0.00021616,2]
[379455006,1755286241810,-1274.30338503,0.00021647,2]
[379455007,1755286241820,-157.0,0.00021753,5]
[379455008,1755286241830,-500.0,0.0002186,2]
[379455009,1755286241840,-250.260512,0.00021912,2]
[379455010,1755286241849,-250.260512,0.00021912,2]
[379455011,1755286241858,-200.0,0.00021918,2]
[379455012,1755286241867,-13570.51078869,0.00021965,2]
[379455013,1755286241876,-500.0,0.00021973,2]
[379455014,1755286241885,-1017.79937379,0.00021973,2]
[379455015,1755286241895,-150.0,0.00021973,2]
[379455016,1755286241904,-250.260512,0.0002198,7]
[379455017,1755286241913,-250.260512,0.0002198,7]
[379455018,1755286241923,-158.66,0.00022,7]
[379455019,1755286241932,-15342.34,0.00022,7]
[379455020,1755286241941,-169.0,0.00022,2]
[379455021,1755286241950,-22966.19,0.00022,2]
[379455022,1755286241960,-4638.47,0.00022,7]
[379455023,1755286241969,-160.0,0.00022,7]
[379455024,1755286241978,-167.62725321,0.00022,10]
[379455025,1755286241987,-6000.99159258,0.00022,2]
[379455026,1755286241997,-197.32,0.00022,2]
[379455027,1755286242006,-250.260512,0.0002201,7]
[379455028,1755286242015,-250.260512,0.0002201,7]
[379455029,1755286242024,-500.0,0.0002201,2]
[379455030,1755286242033,-550.0,0.00022017,2]
[379455031,1755286242042,-2500.0,0.00022017,2]
[379455032,1755286242051,-654.65201671,0.00022068,2]
[379455033,1755286242060,-1259.61176669,0.00022068,2]
[379455034,1755286242069,-237.56320412,0.00022068,2]
[379455035,1755286242079,-760.0,0.00022081,2]
[379455036,1755286242088,-266.26282825,0.00022094,2]
[379455037,1755286242097,-1500.0,0.00022098,2]
[379455038,1755286242106,-151.0,0.000221,6]
[379455040,1755286242115,-168.0,0.00022114,2]
[379455042,1755286242126,-500.0,0.00022134,2]
[379455043,1755286242135,-250.260512,0.0002214,7]
[379455044,1755286242144,-250.260502,0.0002214,7]
[379455045,1755286242154,-168.0,0.0002215,2]
[379455046,1755286242163,-497.15365796,0.00022164,2]
[379455048,1755286242172,-2500.0,0.00022164,2]
[379455049,1755286242181,-2500.0,0.00022164,2]
[379455050,1755286242191,-972.0,0.00022259,2]
[379455052,1755286242200,-2152.0,0.00022259,2]
[379455053,1755286242209,-636.0,0.00022259,2]
[379455054,1755286242218,-408.0,0.00022259,2]
[379455055,1755286242227,-418.90256455,0.00022323,2]
[379455056,1755286242238,-151.0,0.00022366,2]
[379455057,1755286242247,-17182.34911742,0.00022366,2]
[379455058,1755286242256,-270.9592743,0.00022408,2]
[379455059,1755286242265,-168.0,0.00022414,2]
[379455060,1755286242274,-13570.51078869,0.00022481,2]
[379455061,1755286242283,-250.0,0.00022521,2]
[379455062,1755286242292,-650.0,0.00022565,2]
[379455063,1755286242301,-3000.0,0.00022565,2]
[379455064,1755286242310,-168.0,0.00022569,2]
[379455065,1755286242319,-200.0,0.00022603,2]
[379455066,1755286242328,-446.111,0.00022608,2]
[379455067,1755286242337,-860.0,0.00022628,2]
[379455068,1755286242346,-1063.98626169,0.00022685,2]
[379455069,1755286242355,-168.0,0.000227,2]
[379455070,1755286242364,-1667.10457153,0.00022712,2]
[379455072,1755286242374,-3000.0,0.00022712,2]
[379455073,1755286242383,-3900.0,0.0002278,2]
[379455074,1755286242392,-151.0,0.000228,5]
[379455075,1755286242401,-13570.51078869,0.00022997,2]
[379455076,1755286242411,-2000.71031757,0.00023,2]
[379455077,1755286242420,-5061.74435076,0.00023,2]
[379455078,1755286242429,-1341.35794119,0.00023,2]
[379455079,1755286242438,-160.0,0.00023,2]
[379455080,1755286242448,-1000.0,0.00023068,2]
[379455081,1755286242457,-350.0,0.00023068,2]
[379455082,1755286242466,-1274.30338503,0.00023106,2]
[379455083,1755286242475,-500.0,0.00023111,2]
[379455084,1755286242484,-750.0,0.00023113,2]
[379455085,1755286242493,-2428.10060781,0.00023113,2]
[379455086,1755286242502,-960.0,0.00023176,2]
[379455087,1755286242511,-1500.0,0.00023194,2]
[379455088,1755286242520,-200.0,0.00023201,20]
[379455089,1755286242530,-200.0,0.00023201,20]
[379455090,1755286242539,-200.0,0.00023201,20]
[379455091,1755286242548,-200.0,0.00023201,20]
[379455092,1755286242557,-200.0,0.00023201,20]
[379455093,1755286242567,-200.0,0.00023201,20]
[379455094,1755286242576,-200.0,0.00023201,20]
[379455095,1755286242586,-200.0,0.00023201,20]
[379455096,1755286242596,-200.0,0.00023201,20]
[379455097,1755286242605,-200.0,0.00023201,20]
[379455098,1755286242614,-200.0,0.00023201,20]
[379455099,1755286242624,-200.0,0.00023201,20]
[379455100,1755286242635,-200.0,0.00023201,20]
[379455101,1755286242644,-200.0,0.00023201,20]
[379455102,1755286242653,-200.0,0.00023201,20]
[379455103,1755286242663,-292.0,0.00023201,20]
[379455104,1755286242672,-3500.0,0.0002326,2]
[379455105,1755286242681,-213.542944,0.00023288,2]
[379455106,1755286242690,-150.0,0.000233,2]
[379455107,1755286242700,-652.08,0.00023389,2]
[379455108,1755286242709,-151.0,0.000235,6]
[379455109,1755286242723,-4638.47,0.000235,7]
[379455110,1755286242732,-42001.81476363,0.000235,14]
[379455111,1755286242742,-1000.0,0.000235,2]
[379455112,1755286242751,-13570.51078869,0.00023513,2]
[379455113,1755286242761,-158.66,0.000236,7]
[379455114,1755286242771,-15342.34,0.000236,7]
[379455115,1755286242781,-538.55518668,0.00023616,2]
[379455116,1755286242793,-850.0,0.00023661,2]
[379455117,1755286242807,-22966.19,0.000237,2]
[379455118,1755286242822,-7862.33454642,0.00023708,2]
[379455119,1755286242832,-1060.0,0.00023724,2]
[379455120,1755286242842,-151.0,0.00023735,2]
[379455121,1755286242852,-7862.33454642,0.00023739,2]
[379455122,1755286242861,-177.59475323,0.00023746,2]
[379455123,1755286242871,-1775.94753238,0.00023756,2]
[379455124,1755286242880,-1775.94753238,0.00023775,2]
[379455125,1755286242890,-177.59475323,0.00023777,2]
[379455126,1755286242899,-4000.0,0.00023808,2]
[379455127,1755286242908,-300.0,0.00023848,2]
[379455128,1755286242918,-2514.82852699,0.000239,2]
[379455129,1755286242928,-160.0,0.00024,7]
[379455131,1755286242938,-528.28344625,0.00024,7]
[379455132,1755286242947,-232.08354597,0.00024,7]
[379455133,1755286242957,-216.77912109,0.00024,7]
[379455134,1755286242968,-645.0,0.00024,2]
[379455135,1755286242977,-1700.93253725,0.00024,2]
[379455136,1755286242987,-843.47195277,0.00024,7]
[379455137,1755286242997,-160.0,0.00024,7]
[379455138,1755286243006,-417.15472785,0.00024,7]
[379455139,1755286243015,-13570.51078869,0.00024029,2]
[379455140,1755286243025,-151.0,0.00024151,5]
[379455141,1755286243034,-1500.0,0.00024164,2]
[379455142,1755286243044,-151.0,0.000242,8]
[379455144,1755286243053,-800.0,0.00024209,2]
[379455145,1755286243062,-500.0,0.00024267,2]
[379455146,1755286243071,-200.0,0.0002427,10]
[379455147,1755286243080,-1160.0,0.00024272,2]
[379455148,1755286243090,-1500.0,0.0002429,2]
[379455149,1755286243100,-2200.0,0.00024298,2]
[379455150,1755286243109,-4500.0,0.00024356,2]
[379455151,1755286243119,-450.0,0.00024396,2]
[379455152,1755286243128,-659.82930762,0.000245,2]
[379455153,1755286243137,-13570.51078869,0.00024545,2]
[379455154,1755286243147,-1274.30338503,0.00024564,2]
[379455155,1755286243157,-153.0,0.00024633,2]
[379455156,1755286243166,-153.0,0.00024633,2]
[379455157,1755286243175,-153.0,0.00024633,2]
[379455158,1755286243184,-153.0,0.00024633,2]
[379455159,1755286243193,-153.0,0.00024633,2]
[379455160,1755286243202,-153.0,0.00024633,2]
[379455161,1755286243211,-153.0,0.00024633,2]
[379455162,1755286243220,-153.0,0.00024633,2]
[379455163,1755286243230,-153.0,0.00024633,2]
[379455164,1755286243239,-153.0,0.00024633,2]
[379455165,1755286243248,-153.0,0.00024633,2]
[379455166,1755286243257,-153.0,0.00024633,2]
[379455168,1755286243267,-153.0,0.00024633,2]
[379455170,1755286243276,-153.0,0.00024633,2]
[379455173,1755286243285,-153.0,0.00024633,2]
[379455177,1755286243295,-153.0,0.00024633,2]
[379455180,1755286243304,-153.0,0.00024633,2]
[379455182,1755286243314,-153.0,0.00024633,2]
[379455183,1755286243324,-153.0,0.00024633,2]
[379455184,1755286243334,-153.0,0.00024633,2]
[379455186,1755286243343,-153.0,0.00024633,2]
[379455191,1755286243460,-153.0,0.00024633,2]
[379455192,1755286243470,-153.0,0.00024633,2]
[379455193,1755286243479,-153.0,0.00024633,2]
[379455194,1755286243489,-153.0,0.00024633,2]
[379455195,1755286243498,-153.0,0.00024633,2]
[379455196,1755286243507,-153.0,0.00024633,2]
[379455197,1755286243517,-153.0,0.00024633,2]
[379455198,1755286243526,-153.0,0.00024633,2]
[379455199,1755286243535,-153.0,0.00024633,2]
[379455200,1755286243545,-153.0,0.00024633,2]
[379455201,1755286243554,-153.0,0.00024633,2]
[379455202,1755286243564,-153.0,0.00024633,2]
[379455203,1755286243574,-153.0,0.00024633,2]
[379455204,1755286243584,-153.0,0.00024633,2]
[379455205,1755286243594,-153.0,0.00024633,2]
[379455206,1755286243603,-153.0,0.00024633,2]
[379455207,1755286243612,-153.0,0.00024633,2]
[379455208,1755286243621,-153.0,0.00024633,2]